fUST/lending_fUST_20240725
["ID","MTS","AMOUNT","RATE_DAILY","PERIOD"]
[333152775,1721892643824,-929.61,0.00013698,2]
[333152777,1721892643834,-500.0,0.00013698,2]
[333152780,1721892643843,-500.0,0.00013698,2]
[333152782,1721892643856,-500.0,0.00013698,2]
[333152784,1721892643867,-500.0,0.00013698,2]
[333152786,1721892643878,-500.0,0.00013698,2]
[333152788,1721892643888,-697.88,0.00013698,2]
[333152791,1721892643901,-1637.45,0.00013698,2]
[333152793,1721892643911,-933.63,0.00013698,2]
[333152795,1721892643923,-548.887794,0.00013698,2]
[333152797,1721892643933,-375.7699828,0.00013698,2]
[333152799,1721892643943,-500.0,0.00013698,2]
[333152802,1721892643957,-1330.57,0.00013698,2]
[333152804,1721892643968,-194.22174648,0.00013698,2]
[333152806,1721892643981,-500.0,0.00013698,2]
[333152808,1721892643991,-500.0,0.00013698,2]
[333152811,1721892644003,-500.0,0.00013698,2]
[333152813,1721892644014,-925.79,0.00013698,2]
[333152815,1721892644026,-167.79203107,0.00013698,2]
[333153037,1721892646226,-153.0,0.0001267,2]
[333153040,1721892646239,-413.0610726,0.00013629,2]
[333153042,1721892646251,-381.09576293,0.00013698,2]
[333153044,1721892646262,-500.0,0.00013698,2]
[333153046,1721892646273,-511.85615867,0.00013698,2]
[333153048,1721892646282,-500.0,0.00013698,2]
[333153050,1721892646292,-613.84,0.00013698,2]
[333153053,1721892646303,-502.90765232,0.00013698,2]
[333153055,1721892646313,-500.0,0.00013698,2]
[333153057,1721892646323,-227.97131,0.00013698,2]
[333153059,1721892646334,-500.0,0.00013698,2]
[333153061,1721892646345,-500.0,0.00013698,2]
[333153063,1721892646356,-1297.36,0.00013698,2]
[333153065,1721892646372,-168.937606,0.00013698,2]
[333153067,1721892646382,-227.97131,0.00013698,2]
[333153069,1721892646391,-500.0,0.00013698,2]
[333153071,1721892646400,-500.0,0.00013698,2]
[333153074,1721892646411,-168.937606,0.00013698,2]
[333153076,1721892646421,-500.0,0.00013698,2]
[333153078,1721892646432,-500.0,0.00013698,2]
[333153080,1721892646443,-500.0,0.00013698,2]
[333153082,1721892646452,-500.0,0.00013698,2]
[333153084,1721892646465,-500.0,0.00013698,2]
[333153086,1721892646475,-500.0,0.00013698,2]
[333153088,1721892646486,-500.0,0.00013698,2]
[333153091,1721892646498,-500.0,0.00013698,2]
[333153093,1721892646510,-500.0,0.00013698,2]
[333153095,1721892646521,-10.64050306,0.00013698,2]
[333153455,1721892683513,200.0,0.0001,2]
[333153456,1721892693201,200.0,0.0001,2]
[333153457,1721892752715,200.0,0.0001,2]
[333153458,1721892766638,941.18343028,0.0001,2]
[333153459,1721892823041,209.50538151,0.0001,2]
[333153460,1721892839966,273.37336231,9.9e-05,2]
[333153461,1721892847997,273.37336231,9.9e-05,2]
[333153462,1721892856912,273.37336231,9.9e-05,2]
[333153463,1721892864874,273.37336231,9.9e-05,2]
[333153464,1721892873943,273.37336231,9.9e-05,2]
[333153465,1721892881924,273.37336231,9.9e-05,2]
[333153466,1721892890665,273.37336231,9.9e-05,2]
[333153467,1721892891557,217.45512546,9.9e-05,2]
[333153469,1721892898834,273.37336231,9.9e-05,2]
[333153470,1721892907103,273.37336231,9.9e-05,2]
[333153471,1721892917366,273.37336231,9.9e-05,2]
[333153474,1721893392371,153.75022294,9.9e-05,2]
[333153475,1721893400322,273.37336231,9.9e-05,2]
[333153476,1721893408549,177.17659661,9.9e-05,2]
[333153477,1721893408973,503.86704701,9.999e-05,2]
[333153478,1721893446677,206.24082542,9.999e-05,2]
[333153480,1721893494844,319.54991411,9.999e-05,2]
[333153482,1721893530568,154.86517912,9.999e-05,2]
[333153483,1721893541539,167.83755259,9.999e-05,2]
[333153484,1721893553478,166.87778214,9.999e-05,2]
[333153485,1721893558799,9566.23980276,9.999e-05,2]
[333153486,1721893561716,1625.30319851,9.999e-05,2]
[333153487,1721893574619,294.74233588,9.999e-05,2]
[333153488,1721893577690,155.18838401,9.999e-05,2]
[333153489,1721893578516,3787.33366306,9.999e-05,2]
[333153493,1721893633970,154.92131227,9.999e-05,2]
[333153494,1721893658766,472.43520923,9.999e-05,2]
[333153495,1721893673247,250.78200453,9.999e-05,2]
[333153496,1721893676441,155.19557269,9.999e-05,2]
[333153497,1721893683620,218.09499306,9.999e-05,2]
[333153498,1721893686485,155.13063601,9.999e-05,2]
[333153499,1721893692594,288.28494131,9.999e-05,2]
[333153500,1721893794575,206.96381005,9.999e-05,2]
[333153502,1721893819705,154.79443376,9.999e-05,2]
[333153522,1721893832045,154.79103211,0.0001,2]
[333153548,1721893832342,-500.0,0.00010959,2]
[333153569,1721893838200,-299.84,0.00010959,2]
[333153572,1721893838212,-159.96,0.00010959,2]
[333153574,1721893838223,-300.0,0.0001177,2]
[333153576,1721893838233,-15400.24026861,0.00011771,2]
[333153579,1721893838254,-9499.75973139,0.00011771,2]
[333153582,1721893838266,-154.79395593,0.0001212,2]
[333153584,1721893838277,-427.68216536,0.0001212,2]
[333153586,1721893838287,-165.686786,0.00012376,2]
[333153588,1721893838299,-165.686786,0.00012426,2]
[333153590,1721893838310,-165.686786,0.00012475,2]
[333153592,1721893838321,-165.686786,0.00012525,2]
[333153595,1721893838332,-165.686786,0.00012574,2]
[333153597,1721893838344,-165.686786,0.00012624,2]
[333153599,1721893838354,-165.686786,0.00012674,2]
[333153602,1721893838365,-165.686786,0.00012723,2]
[333153604,1721893838375,-165.686786,0.00012773,2]
[333153606,1721893838387,-165.686786,0.00012823,2]
[333153609,1721893838396,-165.686786,0.00012872,2]
[333153613,1721893838409,-165.686786,0.00012922,2]
[333153617,1721893838419,-420.0,0.00012947,2]
[333153620,1721893838428,-165.686786,0.00012971,2]
[333153623,1721893838439,-228.2215962,0.00012978,2]
[333153626,1721893838449,-153.0,0.00012978,2]
[333153629,1721893838460,-153.0,0.00012978,2]
[333153632,1721893838470,-1000.0,0.00013,11]
[333153635,1721893838481,-165.686786,0.00013021,2]
[333153637,1721893838491,-306.0,0.00013151,2]
[333153639,1721893838501,-200.0,0.00013425,2]
[333153641,1721893838510,-367.51233122,0.00013427,2]
[333153643,1721893838519,-1000.0,0.00013535,2]
[333153645,1721893838529,-1833.2367516,0.00013598,2]
[333153647,1721893838539,-17181.286333,0.000136,2]
[333153648,1721893838550,-150.112233,0.000136,2]
[333153649,1721893838560,-150.112233,0.000136,2]
[333153652,1721893838570,-150.112233,0.000136,2]
[333153653,1721893838579,-150.112233,0.000136,2]
[333153656,1721893838590,-5306.88604622,0.00013622,2]
[333153658,1721893838601,-153.0,0.00013629,2]
[333153660,1721893838611,-322223.827544,0.00013688,2]
[333153662,1721893838621,-771.8042138,0.00013693,2]
[333153664,1721893838630,-116615.47693293,0.00013698,2]
[333153699,1721893839008,-14479.92492935,0.00013698,2]
[333153700,1721893839017,-188.301598,0.00013698,2]
[333153701,1721893839026,-1603.24,0.00013698,2]
[333153702,1721893839036,-1603.24,0.00013698,2]
[333153703,1721893839045,-1603.24,0.00013698,2]
[333153704,1721893839054,-1603.24,0.00013698,2]
[333153705,1721893839064,-1603.24,0.00013698,2]
[333153706,1721893839073,-1603.24,0.00013698,2]
[333153707,1721893839082,-1603.24,0.00013698,2]
[333153708,1721893839091,-246.05214004,0.00013698,2]
[333153727,1721893839339,-1357.18785996,0.00013698,2]
[333153729,1721893839349,-1603.24,0.00013698,2]
[333153731,1721893839358,-1603.24,0.00013698,2]
[333153733,1721893839367,-1603.24,0.00013698,2]
[333153735,1721893839377,-1603.24,0.00013698,2]
[333153737,1721893839386,-151.0,0.00013698,2]
[333153739,1721893839395,-1603.24,0.00013698,2]
[333153741,1721893839405,-1603.24,0.00013698,2]
[333153743,1721893839414,-1603.24,0.00013698,2]
[333153746,1721893839424,-1603.24,0.00013698,2]
[333153748,1721893839434,-1603.24,0.00013698,2]
[333153750,1721893839444,-1603.24,0.00013698,2]
[333153752,1721893839454,-1603.24,0.00013698,2]
[333153754,1721893839464,-1603.24,0.00013698,2]
[333153756,1721893839476,-1603.24,0.00013698,2]
[333153758,1721893839487,-1603.24,0.00013698,2]
[333153761,1721893839498,-1603.24,0.00013698,2]
[333153763,1721893839509,-1603.42583141,0.00013698,2]
[333153765,1721893839519,-151.0,0.00013698,2]
[333153767,1721893839532,-500.0,0.00013698,2]
[333153769,1721893839543,-151.0,0.00013698,2]
[333153772,1721893839554,-500.0,0.00013698,2]
[333153774,1721893839564,-544.49364326,0.00013698,2]
[333153776,1721893839575,-500.0,0.00013698,2]
[333153778,1721893839587,-500.0,0.00013698,2]
[333153780,1721893839598,-500.0,0.00013698,2]
[333153783,1721893839609,-500.0,0.00013698,2]
[333153785,1721893839619,-150.08755979,0.00013698,2]
[333153787,1721893839629,-500.0,0.00013698,2]
[333153789,1721893839639,-500.0,0.00013698,2]
[333153791,1721893839649,-343.29745174,0.00013698,2]
[333153793,1721893839659,-500.0,0.00013698,2]
[333153796,1721893839669,-796.746604,0.00013698,2]
[333153799,1721893839679,-500.0,0.00013698,2]
[333153801,1721893839688,-500.0,0.00013698,2]
[333153803,1721893839697,-500.0,0.00013698,2]
[333153805,1721893839707,-500.0,0.00013698,2]
[333153807,1721893839717,-500.0,0.00013698,2]
[333153809,1721893839728,-500.0,0.00013698,2]
[333153811,1721893839738,-500.0,0.00013698,2]
[333153814,1721893839749,-453.45527453,0.00013698,2]
[333153816,1721893839761,-518.48427505,0.00013698,2]
[333153818,1721893839775,-154.71377951,0.00013698,2]
[333153820,1721893839786,-796.746604,0.00013698,2]
[333153822,1721893839798,-500.0,0.00013698,2]
[333153825,1721893839809,-500.0,0.00013698,2]
[333153827,1721893839820,-500.0,0.00013698,2]
[333153829,1721893839829,-500.0,0.00013698,2]
[333153831,1721893839839,-500.0,0.00013698,2]
[333153833,1721893839850,-224.1136796,0.00013698,2]
[333153835,1721893839860,-500.0,0.00013698,2]
[333153837,1721893839870,-500.0,0.00013698,2]
[333153839,1721893839881,-538.74851506,0.00013698,2]
[333153841,1721893839891,-151.0,0.00013698,2]
[333153843,1721893839900,-151.0,0.00013698,2]
[333153845,1721893839910,-500.0,0.00013698,2]
[333153847,1721893839921,-151.0,0.00013698,2]
[333153849,1721893839931,-151.0,0.00013698,2]
[333153851,1721893839943,-502.31656906,0.00013698,2]
[333153853,1721893839953,-500.0,0.00013698,2]
[333153855,1721893839964,-500.0,0.00013698,2]
[333153857,1721893839973,-500.0,0.00013698,2]
[333153859,1721893839984,-503.71130768,0.00013698,2]
[333153861,1721893839993,-500.0,0.00013698,2]
[333153863,1721893840004,-502.11194935,0.00013698,2]
[333153866,1721893840014,-506.25486992,0.00013698,2]
[333153868,1721893840025,-500.0,0.00013698,2]
[333153870,1721893840036,-500.0,0.00013698,2]
[333153872,1721893840045,-500.0,0.00013698,2]
[333153874,1721893840056,-500.0,0.00013698,2]
[333153876,1721893840066,-500.0,0.00013698,2]
[333153878,1721893840077,-500.0,0.00013698,2]
[333153880,1721893840087,-500.0,0.00013698,2]
[333153882,1721893840096,-500.0,0.00013698,2]
[333153884,1721893840106,-151.0,0.00013698,2]
[333153886,1721893840115,-151.0,0.00013698,2]
[333153888,1721893840126,-500.0,0.00013698,2]
[333153890,1721893840136,-505.81204694,0.00013698,2]
[333153892,1721893840147,-500.0,0.00013698,2]
[333153894,1721893840156,-504.29453083,0.00013698,2]
[333153896,1721893840168,-500.0,0.00013698,2]
[333153898,1721893840177,-500.0,0.00013698,2]
[333153900,1721893840188,-526.35927436,0.00013698,2]
[333153902,1721893840199,-519.39971363,0.00013698,2]
[333153904,1721893840209,-691.48,0.00013698,2]
[333153906,1721893840219,-500.12511869,0.00013698,2]
[333153908,1721893840228,-500.0,0.00013698,2]
[333153910,1721893840238,-500.0,0.00013698,2]
[333153912,1721893840247,-256.537051,0.00013698,2]
[333153914,1721893840258,-256.537051,0.00013698,2]
[333153916,1721893840268,-500.0,0.00013698,2]
[333153918,1721893840278,-503.88456331,0.00013698,2]
[333153920,1721893840289,-500.0,0.00013698,2]
[333153923,1721893840301,-256.537051,0.00013698,2]
[333153925,1721893840312,-500.0,0.00013698,2]
[333153927,1721893840323,-256.537051,0.00013698,2]
[333153929,1721893840334,-500.0,0.00013698,2]
[333153931,1721893840345,-500.0,0.00013698,2]
[333153934,1721893840357,-508.9687523,0.00013698,2]
[333153952,1721893840523,-500.0,0.00013698,2]
[333153955,1721893840534,-500.0,0.00013698,2]
[333153957,1721893840545,-500.0,0.00013698,2]
[333153959,1721893840555,-500.0,0.00013698,2]
[333153961,1721893840567,-500.0,0.00013698,2]
[333153963,1721893840579,-500.0,0.00013698,2]
[333153966,1721893840591,-500.0,0.00013698,2]
[333153968,1721893840601,-500.0,0.00013698,2]
[333153970,1721893840611,-500.0,0.00013698,2]
[333153972,1721893840621,-500.0,0.00013698,2]
[333153974,1721893840631,-1037.86,0.00013698,2]
[333153976,1721893840641,-500.0,0.00013698,2]
[333153978,1721893840651,-500.0,0.00013698,2]
[333153980,1721893840661,-473.18271904,0.00013698,2]
[333153982,1721893840671,-500.0,0.00013698,2]
[333153984,1721893840681,-506.05334032,0.00013698,2]
[333153986,1721893840691,-1049.54,0.00013698,2]
[333153988,1721893840700,-500.0,0.00013698,2]
[333153990,1721893840710,-500.0,0.00013698,2]
[333153993,1721893840719,-500.0,0.00013698,2]
[333153995,1721893840729,-500.0,0.00013698,2]
[333153997,1721893840738,-500.0,0.00013698,2]
[333153999,1721893840748,-500.0,0.00013698,2]
[333154001,1721893840757,-500.0,0.00013698,2]
[333154003,1721893840767,-500.0,0.00013698,2]
[333154004,1721893840778,-500.0,0.00013698,2]
[333154006,1721893840787,-507.68478184,0.00013698,2]
[333154009,1721893840797,-500.0,0.00013698,2]
[333154011,1721893840807,-500.0,0.00013698,2]
[333154013,1721893840817,-500.0,0.00013698,2]
[333154015,1721893840827,-500.0,0.00013698,2]
[333154016,1721893840836,-500.0,0.00013698,2]
[333154019,1721893840845,-500.0,0.00013698,2]
[333154021,1721893840856,-500.0,0.00013698,2]
[333154023,1721893840866,-1474.68,0.00013698,2]
[333154025,1721893840876,-539.44620326,0.00013698,2]
[333154027,1721893840885,-500.0,0.00013698,2]
[333154029,1721893840895,-500.0,0.00013698,2]
[333154031,1721893840905,-500.0,0.00013698,2]
[333154033,1721893840914,-151.0,0.00013698,2]
[333154035,1721893840924,-500.0,0.00013698,2]
[333154036,1721893840934,-806.89,0.00013698,2]
[333154038,1721893840944,-500.0,0.00013698,2]
[333154040,1721893840953,-500.0,0.00013698,2]
[333154042,1721893840963,-520.08,0.00013698,2]
[333154044,1721893840973,-502.07970513,0.00013698,2]
[333154046,1721893840982,-500.0,0.00013698,2]
[333154048,1721893840992,-500.0,0.00013698,2]
[333154050,1721893841001,-500.0,0.00013698,2]
[333154052,1721893841011,-500.0,0.00013698,2]
[333154054,1721893841020,-500.0,0.00013698,2]
[333154056,1721893841030,-500.0,0.00013698,2]
[333154058,1721893841040,-501.65,0.00013698,2]
[333154060,1721893841050,-500.0,0.00013698,2]
[333154062,1721893841060,-500.0,0.00013698,2]
[333154064,1721893841069,-1044.31,0.00013698,2]
[333154066,1721893841079,-500.0,0.00013698,2]
[333154068,1721893841088,-500.0,0.00013698,2]
[333154070,1721893841098,-500.0,0.00013698,2]
[333154072,1721893841107,-500.0,0.00013698,2]
[333154074,1721893841117,-500.0,0.00013698,2]
[333154076,1721893841127,-500.0,0.00013698,2]
[333154078,1721893841136,-500.0,0.00013698,2]
[333154080,1721893841146,-500.0,0.00013698,2]
[333154082,1721893841155,-500.0,0.00013698,2]
[333154084,1721893841164,-500.0,0.00013698,2]
[333154086,1721893841173,-500.0,0.00013698,2]
[333154088,1721893841183,-500.0,0.00013698,2]
[333154090,1721893841194,-151.0,0.00013698,2]
[333154092,1721893841204,-500.0,0.00013698,2]
[333154094,1721893841214,-500.0,0.00013698,2]
[333154096,1721893841223,-1019.17206653,0.00013698,2]
[333154098,1721893841233,-500.0,0.00013698,2]
[333154100,1721893841242,-500.0,0.00013698,2]
[333154102,1721893841251,-500.0,0.00013698,2]
[333154104,1721893841261,-1148.78,0.00013698,2]
[333154106,1721893841270,-640.36,0.00013698,2]
[333154108,1721893841279,-500.0,0.00013698,2]
[333154110,1721893841289,-1279.73,0.00013698,2]
[333154112,1721893841298,-619.66,0.00013698,2]
[333154114,1721893841307,-500.0,0.00013698,2]
[333154116,1721893841317,-500.0,0.00013698,2]
[333154118,1721893841326,-500.0,0.00013698,2]
[333154120,1721893841335,-500.0,0.00013698,2]
[333154122,1721893841346,-500.0,0.00013698,2]
[333154124,1721893841355,-500.0,0.00013698,2]
[333154126,1721893841365,-151.0,0.00013698,2]
[333154128,1721893841374,-151.0,0.00013698,2]
[333154130,1721893841383,-500.0,0.00013698,2]
[333154132,1721893841393,-151.416266,0.00013698,2]
[333154134,1721893841402,-500.0,0.00013698,2]
[333154136,1721893841412,-500.0,0.00013698,2]
[333154138,1721893841421,-500.0,0.00013698,2]
[333154140,1721893841431,-500.0,0.00013698,2]
[333154142,1721893841441,-500.0,0.00013698,2]
[333154144,1721893841450,-500.0,0.00013698,2]
[333154146,1721893841459,-500.0,0.00013698,2]
[333154148,1721893841469,-151.0,0.00013698,2]
[333154150,1721893841478,-151.0,0.00013698,2]
[333154152,1721893841488,-151.0,0.00013698,2]
[333154154,1721893841498,-500.0,0.00013698,2]
[333154156,1721893841507,-500.0,0.00013698,2]
[333154158,1721893841517,-506.42149932,0.00013698,2]
[333154160,1721893841527,-504.79590496,0.00013698,2]
[333154162,1721893841537,-1806.4,0.00013698,2]
[333154164,1721893841547,-500.0,0.00013698,2]
[333154166,1721893841556,-500.0,0.00013698,2]
[333154168,1721893841567,-500.0,0.00013698,2]
[333154170,1721893841576,-500.0,0.00013698,2]
[333154172,1721893841585,-500.0,0.00013698,2]
[333154174,1721893841595,-500.0,0.00013698,2]
[333154176,1721893841605,-500.0,0.00013698,2]
[333154178,1721893841614,-500.0,0.00013698,2]
[333154180,1721893841623,-504.50703315,0.00013698,2]
[333154182,1721893841633,-500.0,0.00013698,2]
[333154184,1721893841643,-500.0,0.00013698,2]
[333154186,1721893841652,-215.86503214,0.00013698,2]
[333154188,1721893841661,-500.0,0.00013698,2]
[333154190,1721893841671,-500.0,0.00013698,2]
[333154192,1721893841680,-513.09194325,0.00013698,2]
[333154194,1721893841689,-500.0,0.00013698,2]
[333154196,1721893841699,-500.0,0.00013698,2]
[333154198,1721893841708,-500.0,0.00013698,2]
[333154200,1721893841718,-500.0,0.00013698,2]
[333154202,1721893841728,-554.4036553,0.00013698,2]
[333154204,1721893841737,-170.651643,0.00013698,2]
[333154206,1721893841746,-500.0,0.00013698,2]
[333154208,1721893841756,-170.651643,0.00013698,2]
[333154210,1721893841767,-500.0,0.00013698,2]
[333154213,1721893841781,-504.25875991,0.00013698,2]
[333154215,1721893841792,-500.0,0.00013698,2]
[333154217,1721893841803,-170.651643,0.00013698,2]
[333154219,1721893841813,-509.33467096,0.00013698,2]
[333154221,1721893841824,-170.651643,0.00013698,2]
[333154223,1721893841834,-500.0,0.00013698,2]
[333154225,1721893841845,-500.0,0.00013698,2]
[333154227,1721893841857,-500.0,0.00013698,2]
[333154229,1721893841868,-500.0,0.00013698,2]
[333154231,1721893841879,-500.0,0.00013698,2]
[333154233,1721893841890,-554.48,0.00013698,2]
[333154236,1721893841900,-500.0,0.00013698,2]
[333154238,1721893841912,-500.0,0.00013698,2]
[333154240,1721893841922,-500.0,0.00013698,2]
[333154242,1721893841933,-500.0,0.00013698,2]
[333154244,1721893841943,-500.0,0.00013698,2]
[333154246,1721893841952,-500.0,0.00013698,2]
[333154248,1721893841962,-500.0,0.00013698,2]
[333154250,1721893841971,-500.0,0.00013698,2]
[333154252,1721893841980,-500.0,0.00013698,2]
[333154254,1721893841992,-500.0,0.00013698,2]
[333154256,1721893842007,-500.0,0.00013698,2]
[333154259,1721893842022,-375.7699828,0.00013698,2]
[333154261,1721893842037,-500.0,0.00013698,2]
[333154263,1721893842049,-1577.56,0.00013698,2]
[333154266,1721893842061,-151.0,0.00013698,2]
[333154268,1721893842074,-151.865586,0.00013698,2]
[333154271,1721893842088,-500.0,0.00013698,2]
[333154273,1721893842103,-500.0,0.00013698,2]
[333154276,1721893842118,-500.0,0.00013698,2]
[333154278,1721893842131,-210.57611742,0.00013698,2]
[333154280,1721893842145,-907.1,0.00013698,2]
[333154283,1721893842159,-500.0,0.00013698,2]
[333154285,1721893842174,-500.0,0.00013698,2]
[333154288,1721893842188,-500.0,0.00013698,2]
[333154290,1721893842202,-500.0,0.00013698,2]
[333154293,1721893842216,-501.8751649,0.00013698,2]
[333154295,1721893842230,-500.0,0.00013698,2]
[333154297,1721893842244,-500.0,0.00013698,2]
[333154300,1721893842256,-500.0,0.00013698,2]
[333154302,1721893842269,-500.0,0.00013698,2]
[333154304,1721893842279,-752.9,0.00013698,2]
[333154307,1721893842290,-151.0,0.00013698,2]
[333154309,1721893842302,-151.0,0.00013698,2]
[333154311,1721893842315,-500.0,0.00013698,2]
[333154313,1721893842327,-171.561649,0.00013698,2]
[333154315,1721893842340,-500.0,0.00013698,2]
[333154318,1721893842352,-912.58,0.00013698,2]
[333154320,1721893842365,-500.0,0.00013698,2]
[333154323,1721893842378,-500.0,0.00013698,2]
[333154325,1721893842390,-2603.97,0.00013698,2]
[333154327,1721893842404,-500.0,0.00013698,2]
[333154330,1721893842415,-1695.05,0.00013698,2]
[333154332,1721893842425,-362.4071178,0.00013698,2]
[333154350,1721893842586,-137.5928822,0.00013698,2]
[333154352,1721893842599,-1380.73,0.00013698,2]
[333154354,1721893842610,-500.0,0.00013698,2]
[333154356,1721893842622,-1604.29,0.00013698,2]
[333154359,1721893842633,-500.0,0.00013698,2]
[333154361,1721893842644,-500.0,0.00013698,2]
[333154363,1721893842656,-1145.79,0.00013698,2]
[333154365,1721893842668,-993.49,0.00013698,2]
[333154367,1721893842679,-735.69,0.00013698,2]
[333154370,1721893842691,-500.0,0.00013698,2]
[333154372,1721893842703,-500.0,0.00013698,2]
[333154374,1721893842714,-573.79,0.00013698,2]
[333154376,1721893842726,-500.0,0.00013698,2]
[333154378,1721893842737,-500.0,0.00013698,2]
[333154382,1721893842751,-500.0,0.00013698,2]
[333154384,1721893842762,-500.0,0.00013698,2]
[333154387,1721893842777,-500.0,0.00013698,2]
[333154389,1721893842788,-195.24148491,0.00013698,2]
[333154392,1721893842799,-500.0,0.00013698,2]
[333154394,1721893842811,-1476.27,0.00013698,2]
[333154397,1721893842823,-500.0,0.00013698,2]
[333154400,1721893842834,-532.04,0.00013698,2]
[333154403,1721893842845,-500.0,0.00013698,2]
[333154408,1721893842859,-500.0,0.00013698,2]
[333154411,1721893842871,-1514.27,0.00013698,2]
[333154414,1721893842882,-500.0,0.00013698,2]
[333154417,1721893842893,-500.0,0.00013698,2]
[333154420,1721893842905,-500.0,0.00013698,2]
[333154425,1721893842917,-500.0,0.00013698,2]
[333154427,1721893842929,-151.0,0.00013698,2]
[333154429,1721893842941,-500.0,0.00013698,2]
[333154431,1721893842953,-500.0,0.00013698,2]
[333154432,1721893842965,-500.0,0.00013698,2]
[333154433,1721893842979,-151.0,0.00013698,2]
[333154434,1721893842991,-500.0,0.00013698,2]
[333154435,1721893843003,-500.0,0.00013698,2]
[333154436,1721893843014,-1739.71,0.00013698,2]
[333154437,1721893843027,-500.0,0.00013698,2]
[333154438,1721893843039,-500.0,0.00013698,2]
[333154439,1721893843051,-500.0,0.00013698,2]
[333154440,1721893843064,-500.0,0.00013698,2]
[333154441,1721893843075,-598.82,0.00013698,2]
[333154442,1721893843086,-500.0,0.00013698,2]
[333154443,1721893843098,-500.0,0.00013698,2]
[333154444,1721893843110,-151.0,0.00013698,2]
[333154445,1721893843123,-151.0,0.00013698,2]
[333154446,1721893843135,-373.274606,0.00013698,2]
[333154447,1721893843148,-373.274606,0.00013698,2]
[333154449,1721893843160,-373.274606,0.00013698,2]
[333154451,1721893843171,-500.0,0.00013698,2]
[333154454,1721893843182,-500.0,0.00013698,2]
[333154456,1721893843196,-151.0,0.00013698,2]
[333154458,1721893843208,-151.0,0.00013698,2]
[333154460,1721893843220,-649.15,0.00013698,2]
[333154462,1721893843232,-373.274606,0.00013698,2]
[333154465,1721893843243,-373.274606,0.00013698,2]
[333154467,1721893843255,-373.274606,0.00013698,2]
[333154469,1721893843266,-655.39,0.00013698,2]
[333154471,1721893843277,-500.0,0.00013698,2]
[333154473,1721893843288,-500.0,0.00013698,2]
[333154476,1721893843299,-500.0,0.00013698,2]
[333154478,1721893843312,-500.0,0.00013698,2]
[333154480,1721893843326,-567.72,0.00013698,2]
[333154483,1721893843338,-500.0,0.00013698,2]
[333154485,1721893843349,-500.0,0.00013698,2]
[333154487,1721893843362,-500.0,0.00013698,2]
[333154490,1721893843375,-628.72928174,0.00013698,2]
[333154492,1721893843387,-461.39425363,0.00013698,2]
[333154494,1721893843398,-333.85852225,0.00013698,2]
[333154496,1721893843411,-151.0,0.00013698,2]
[333154499,1721893843424,-500.0,0.00013698,2]
[333154501,1721893843436,-151.0,0.00013698,2]
[333154503,1721893843452,-500.0,0.00013698,2]
[333154507,1721893843465,-151.0,0.00013698,2]
[333154512,1721893843478,-500.0,0.00013698,2]
[333154516,1721893843489,-500.0,0.00013698,2]
[333154521,1721893843501,-500.0,0.00013698,2]
[333154525,1721893843512,-505.62531666,0.00013698,2]
[333154529,1721893843524,-151.0,0.00013698,2]